bitfinex-derivatives/quotes_BTCF0:USTF0_20250405
["timestamp","ask_amount","ask_price","bid_price","bid_amount"]
[1743827568985,0.1199843,83823.0,83822.0,0.11364]
[1743827569789,0.3199843,83823.0,83822.0,0.08364]
[1743827569978,0.3509843,83823.0,83822.0,0.08364]
[1743827575981,0.3509843,83823.0,83822.0,0.08356]
[1743827580979,0.3509843,83823.0,83822.0,0.0006]
[1743827581382,0.3509843,83823.0,83822.0,0.05092]
[1743827585897,0.3824843,83823.0,83822.0,0.05092]
[1743827586486,0.26314,83823.0,83822.0,0.05092]
[1743827587001,0.3824843,83823.0,83822.0,0.05092]
[1743827587197,0.4138843,83823.0,83822.0,0.05092]
[1743827588800,0.3823843,83823.0,83822.0,0.05092]
[1743827589099,0.26304,83823.0,83822.0,0.05092]
[1743827589789,0.26304,83823.0,83822.0,0.11472]
[1743827589991,0.44102821,83823.0,83822.0,0.11472]
[1743827590897,0.41002821,83823.0,83822.0,0.2340657]
[1743827591096,0.21376474,83831.0,83828.0,0.119336]
[1743827591294,0.21448474,83831.0,83829.0,0.0638]
[1743827591603,0.21448474,83831.0,83829.0,0.0646]
[1743827594097,0.1193343,83830.0,83829.0,0.0646]
[1743827594397,0.38263431,83830.0,83829.0,0.0339]
[1743827595600,0.20060001,83830.0,83829.0,0.1848357]
[1743827597100,0.00017889,83831.0,83830.0,0.1193343]
[1743827597291,0.33290605,83840.0,83832.0,0.1193313]
[1743827597494,0.0328,83839.0,83833.0,0.0943]
[1743827597897,0.1521219,83839.0,83833.0,0.0943]
[1743827598093,0.1530423,83839.0,83833.0,0.09522]
[1743827598300,0.1521223,83839.0,83833.0,0.0943]
[1743827598600,0.0328,83839.0,83833.0,0.0943]
[1743827598804,0.0325,83841.0,83834.0,0.0596643]
[1743827599007,0.0331,83843.0,83836.0,0.1193248]
[1743827599196,0.1193175,83842.0,83837.0,0.0647]
[1743827599593,0.0331,83843.0,83837.0,0.0647]
[1743827599894,0.1193174,83842.0,83837.0,0.0647]
[1743827600099,0.1193199,83841.0,83837.0,0.0647]
[1743827600297,0.1524199,83841.0,83837.0,0.0647]
[1743827600498,0.0325,83840.0,83837.0,0.0647]
[1743827600906,0.0331,83839.0,83837.0,0.0647]
[1743827602807,0.03402,83839.0,83837.0,0.06562]
[1743827609812,0.03402,83839.0,83838.0,0.1981]
[1743827610009,0.1533415,83839.0,83838.0,0.00092]
[1743827610314,0.1859415,83839.0,83838.0,0.08286]
[1743827614016,0.1859415,83839.0,83838.0,0.0514]
[1743827615307,0.3859415,83839.0,83838.0,0.0514]
[1743827619017,0.3859415,83839.0,83838.0,0.00092]
[1743827619217,0.0596645,83834.0,83832.0,0.05044]
[1743827619409,0.240195,83833.0,83832.0,0.05136]
[1743827619605,0.240195,83833.0,83832.0,0.00092]
[1743827620014,0.24115501,83833.0,83832.0,0.00092]
[1743827620517,0.44115501,83833.0,83832.0,0.00092]
[1743827624616,0.65474086,83833.0,83832.0,0.00092]
[1743827625525,1.06754086,83833.0,83832.0,0.00092]
[1743827627015,0.85395501,83833.0,83832.0,0.00092]
[1743827628024,0.1193315,83832.0,83831.0,0.0305]
[1743827628526,0.1800315,83832.0,83831.0,0.0305]
[1743827629523,0.3800315,83832.0,83831.0,0.0305]
[1743827630117,0.38063151,83832.0,83831.0,0.0305]
[1743827632617,0.74143151,83832.0,83831.0,0.0305]
[1743827639221,0.56140001,83832.0,83831.0,0.0305]
[1743827639425,0.20060001,83832.0,83831.0,0.0305]
[1743827639724,0.20060001,83832.0,83831.0,0.0315]
[1743827640725,0.31993151,83832.0,83831.0,0.0315]
[1743827641331,0.31993151,83832.0,83831.0,0.0305]
[1743827642125,0.38603151,83832.0,83831.0,0.0305]
[1743827642635,0.38603151,83832.0,83831.0,0.02976]
[1743827643225,0.35313151,83832.0,83831.0,0.02976]
[1743827644436,0.68073151,83832.0,83831.0,0.02976]
[1743827645239,0.31993151,83832.0,83831.0,0.02976]
[1743827645438,0.68073151,83832.0,83831.0,0.02976]
[1743827645639,0.31993151,83832.0,83831.0,0.02976]
[1743827645936,0.68073151,83832.0,83831.0,0.02976]
[1743827646638,0.31993151,83832.0,83831.0,0.02976]
[1743827647029,0.68073151,83832.0,83831.0,0.02976]
[1743827648038,0.68073151,83832.0,83831.0,0.02862]
[1743827650541,0.31993151,83832.0,83831.0,0.02839]
[1743827650741,0.20060001,83832.0,83831.0,0.02839]
[1743827650942,0.20060001,83832.0,83831.0,0.02931]
[1743827652031,0.20060001,83832.0,83831.0,0.02882]
[1743827652433,0.20060001,83832.0,83831.0,0.0287]
[1743827656936,0.20060001,83832.0,83831.0,0.1480329]
[1743827657544,0.20060001,83832.0,83831.0,0.0287]
[1743827657935,0.20060001,83832.0,83831.0,0.1480329]
[1743827658332,0.20060001,83832.0,83831.0,0.0287]
[1743827658741,0.00060001,83832.0,83831.0,0.1480329]
[1743827659748,0.1193218,83839.0,83832.0,0.119331]
[1743827660047,0.1193218,83839.0,83833.0,0.14868]
[1743827660238,0.11992181,83839.0,83833.0,0.1496]
[1743827660853,0.00060001,83839.0,83833.0,0.1496]
[1743827661238,0.2,83836.0,83833.0,0.1496]
[1743827661442,0.20096001,83836.0,83833.0,0.1496]
[1743827662052,0.20096001,83836.0,83833.0,0.1168]
[1743827672254,0.12472578,83836.0,83834.0,0.0302]
[1743827672448,0.12472578,83836.0,83834.0,0.03112]
[1743827672649,0.12472578,83836.0,83835.0,0.0324]
[1743827672847,0.12472578,83836.0,83835.0,0.03332]
[1743827676349,0.24405158,83836.0,83835.0,0.03332]
[1743827676662,0.24405158,83836.0,83835.0,0.00092]
[1743827676958,0.27705158,83836.0,83835.0,0.00092]
[1743827678060,0.27705158,83836.0,83835.0,0.0512]
[1743827691468,0.27705158,83836.0,83835.0,0.00092]
[1743827691966,0.11933,83833.0,83832.0,0.05028]
[1743827692866,0.18473,83833.0,83832.0,0.05028]
[1743827693172,0.30849,83833.0,83832.0,0.05028]
[1743827695370,0.30917,83833.0,83832.0,0.05028]
[1743827702878,0.27637,83833.0,83832.0,0.05028]
[1743827704377,0.27637,83833.0,83832.0,0.11558]
[1743827706869,0.27637,83833.0,83832.0,0.0653]
[1743827707177,0.1193429,83824.0,83823.0,0.0631]
[1743827707377,0.12030291,83824.0,83823.0,0.1454]
[1743827708086,0.18440291,83824.0,83823.0,0.1454]
[1743827709284,0.30816291,83824.0,83823.0,0.14448]
[1743827711983,0.30816291,83824.0,83823.0,0.0631]
[1743827713487,0.30816291,83824.0,83823.0,0.0311]
[1743827726001,0.1193543,83816.0,83815.0,0.60535889]
[1743827726198,0.06436221,83824.0,83815.0,0.55599889]
[1743827726500,0.00120001,83824.0,83823.0,0.1193443]
[1743827726698,0.15925224,83828.0,83827.0,0.1193386]
[1743827726887,0.0326,83841.0,83835.0,0.1193272]
[1743827727196,0.11932,83841.0,83836.0,0.1193258]
[1743827727403,0.60998349,83842.0,83836.0,0.1208858]
[1743827727593,0.72930099,83842.0,83836.0,0.1208858]
[1743827727794,0.1193189,83841.0,83836.0,0.1208858]
[1743827728005,0.1193202,83840.0,83836.0,0.00156]
[1743827728814,0.1193217,83839.0,83836.0,0.00156]
[1743827729100,0.2,83838.0,83837.0,0.0961]
[1743827729303,0.2,83838.0,83837.0,0.09766]
[1743827729695,0.2,83838.0,83837.0,0.0961]
[1743827731107,0.3193229,83838.0,83837.0,0.0977]
[1743827731607,0.3193229,83838.0,83837.0,0.0961]
[1743827735013,0.3193229,83838.0,83837.0,0.09774]
[1743827735213,0.3193229,83838.0,83837.0,0.0961]
[1743827740809,0.3193229,83838.0,83837.0,0.09766]
[1743827743016,0.01952889,83850.0,83837.0,0.45846]
[1743827743209,0.0608,83848.0,83841.0,0.1193174]
[1743827743520,0.1801101,83848.0,83842.0,0.0636]
[1743827743819,0.1801101,83848.0,83842.0,0.06516]
[1743827744117,0.119305,83851.0,83842.0,0.06516]
[1743827744314,0.149805,83851.0,83844.0,0.119314]
[1743827744517,0.0303,83850.0,83845.0,0.11388]
[1743827744815,0.1496061,83850.0,83845.0,0.11544]
[1743827745019,0.0328,83849.0,83846.0,0.0319]
[1743827745210,0.2,83848.0,83846.0,0.03346]
[1743827745412,0.2,83848.0,83847.0,0.0617]
[1743827745715,0.2,83848.0,83847.0,0.0633]
[1743827747021,0.2,83848.0,83847.0,0.0319]
[1743827747321,0.2,83848.0,83847.0,0.0303]
[1743827748315,0.1193187,83841.0,83840.0,0.07176692]
[1743827748512,0.1193187,83841.0,83840.0,0.05184]
[1743827762233,0.1504187,83841.0,83840.0,0.05184]
[1743827764229,0.0311,83841.0,83840.0,0.05184]
[1743827767340,0.0311,83841.0,83840.0,0.11714]
[1743827770955,0.0311,83841.0,83840.0,0.08384]
[1743827772946,0.27411492,83853.0,83842.0,0.1193171]
[1743827773146,0.0333,83844.0,83843.0,0.0652]
[1743827773444,0.0333,83844.0,83843.0,0.06684]
[1743827773645,0.2333,83844.0,83843.0,0.06684]
[1743827784255,0.2333,83844.0,83843.0,0.03484]
[1743827786357,0.2633,83844.0,83843.0,0.03484]
[1743827789659,0.3826144,83844.0,83843.0,0.03484]
[1743827793661,0.3826144,83844.0,83843.0,0.0332]
[1743827793961,0.3826144,83844.0,83843.0,0.03476]
[1743827794166,0.3826144,83844.0,83843.0,0.0332]
[1743827794356,0.3826144,83844.0,83843.0,0.03484]
[1743827794558,0.3826144,83844.0,83843.0,0.0332]
[1743827794854,0.3826144,83844.0,83843.0,0.03476]
[1743827795662,0.3826144,83844.0,83843.0,0.0332]
[1743827795960,0.3826144,83844.0,83843.0,0.03476]
[1743827797463,0.3826144,83844.0,83843.0,0.0332]
[1743827797663,0.3826144,83844.0,83843.0,0.03476]
[1743827797870,0.3826144,83844.0,83843.0,0.0332]
[1743827798060,0.3826144,83844.0,83843.0,0.03476]
[1743827798353,0.3826144,83844.0,83843.0,0.0332]
[1743827798971,0.3826144,83844.0,83843.0,0.03476]
[1743827799468,0.3826144,83844.0,83843.0,0.0332]
[1743827799670,0.3826144,83844.0,83843.0,0.0348]
[1743827800165,0.3826144,83844.0,83843.0,0.03484]
[1743827800666,0.3826144,83844.0,83843.0,0.0332]
[1743827800853,0.3826144,83844.0,83843.0,0.00156]
[1743827801058,0.3826144,83844.0,83837.0,0.00017889]
[1743827801059,0.1193229,83838.0,83837.0,0.00017889]
[1743827801268,0.4801229,83838.0,83837.0,0.00125889]
[1743827801670,0.8929229,83838.0,83837.0,0.00125889]
[1743827801868,0.9576229,83838.0,83837.0,0.00017889]
[1743827802167,1.1576229,83838.0,83837.0,0.00017889]
[1743827805056,1.15822291,83838.0,83837.0,0.00017889]
[1743827808771,0.79742291,83838.0,83837.0,0.00017889]
[1743827808962,1.51902291,83838.0,83837.0,0.00017889]
[1743827809676,0.79742291,83838.0,83837.0,0.00017889]
[1743827810064,1.51902291,83838.0,83837.0,0.00017889]
[1743827812874,0.79742291,83838.0,83837.0,0.00017889]
[1743827813065,1.51902291,83838.0,83837.0,0.00017889]
[1743827813260,0.79742291,83838.0,83837.0,0.00017889]
[1743827813465,1.51902291,83838.0,83837.0,0.00017889]
[1743827813675,0.79742291,83838.0,83837.0,0.00017889]
[1743827814067,1.51902291,83838.0,83837.0,0.00017889]
[1743827814674,0.79742291,83838.0,83837.0,0.00017889]
[1743827815077,1.51902291,83838.0,83837.0,0.00017889]
[1743827816375,0.79742291,83838.0,83837.0,0.00017889]
[1743827816576,1.51902291,83838.0,83837.0,0.00017889]
[1743827818469,0.79742291,83838.0,83837.0,0.00017889]
[1743827818665,1.51902291,83838.0,83837.0,0.00017889]
[1743827818869,0.79742291,83838.0,83837.0,0.00017889]
[1743827819068,1.51902291,83838.0,83837.0,0.00017889]
[1743827820179,0.79742291,83838.0,83837.0,0.00017889]
[1743827820382,1.51902291,83838.0,83837.0,0.00017889]
[1743827820573,0.79742291,83838.0,83837.0,0.00017889]
[1743827820977,1.51902291,83838.0,83837.0,0.00017889]
[1743827822180,1.15822291,83838.0,83837.0,0.00017889]
[1743827824379,0.79742291,83838.0,83837.0,0.00017889]
[1743827824582,1.15822291,83838.0,83837.0,0.00017889]
[1743827829381,0.79742291,83838.0,83837.0,0.00017889]
[1743827829575,0.1193286,83834.0,83833.0,0.05028]
[1743827829781,0.059665,83833.0,83829.0,0.0319]
[1743827829983,0.3608,83830.0,83829.0,0.0319]
[1743827830174,0.36140001,83830.0,83829.0,0.0319]
[1743827830376,0.48073431,83830.0,83829.0,0.0319]
[1743827830974,0.51153431,83830.0,83829.0,0.02925]
[1743827831173,0.54453431,83830.0,83829.0,0.02925]
[1743827832281,0.74453431,83830.0,83829.0,0.02925]
[1743827833185,0.38373431,83830.0,83829.0,0.02925]
[1743827833386,0.74453431,83830.0,83829.0,0.02925]
[1743827833685,0.68073431,83830.0,83829.0,0.05983]
[1743827835486,0.31993431,83830.0,83829.0,0.05983]
[1743827835691,0.68073431,83830.0,83829.0,0.06091]
[1743827835987,0.68073431,83830.0,83829.0,0.05983]
[1743827837385,0.68073431,83830.0,83829.0,0.05519]
[1743827838086,0.31993431,83830.0,83829.0,0.05519]
[1743827838288,0.68073431,83830.0,83829.0,0.05627]
[1743827838479,0.68073431,83830.0,83829.0,0.05519]
[1743827840186,0.68073431,83830.0,83829.0,0.05075]
[1743827842790,0.68073431,83830.0,83829.0,0.05022]
[1743827843287,0.20060001,83830.0,83829.0,0.05022]
[1743827843591,0.20060001,83830.0,83829.0,0.0513]
[1743827843786,0.31993431,83830.0,83829.0,0.0513]
[1743827844983,0.68073431,83830.0,83829.0,0.0189]
[1743827845188,0.68073431,83830.0,83829.0,0.0681]
[1743827845589,0.74693431,83830.0,83829.0,0.0681]
[1743827845783,0.74693431,83830.0,83829.0,0.06297]
[1743827846684,0.74693431,83830.0,83829.0,0.01269]
[1743827847587,0.38613431,83830.0,83829.0,0.01269]
[1743827847890,0.74693431,83830.0,83829.0,0.01253]
[1743827848290,0.74693431,83830.0,83829.0,0.00531]
[1743827848991,0.74693431,83830.0,83829.0,0.00519]
[1743827849483,0.74693431,83830.0,83829.0,0.00502]
[1743827850291,0.1193357,83829.0,83828.0,0.08208]
[1743827850794,0.1827357,83829.0,83828.0,0.08208]
[1743827851296,0.5435357,83829.0,83828.0,0.08208]
[1743827851491,0.1827357,83829.0,83828.0,0.08208]
[1743827851689,0.5435357,83829.0,83828.0,0.08188]
[1743827851895,0.7435357,83829.0,83828.0,0.05028]
[1743827852794,0.7435357,83829.0,83828.0,0.04893]
[1743827853595,0.7435357,83829.0,83828.0,0.01392]
[1743827853797,0.7435357,83829.0,83828.0,0.01365]
[1743827854192,0.3827357,83829.0,83828.0,0.01365]
[1743827854395,0.7435357,83829.0,83828.0,0.01365]
[1743827855095,0.74413571,83829.0,83823.0,0.0316]
[1743827855397,0.1193443,83823.0,83822.0,0.01539]
[1743827855597,0.12042431,83823.0,83822.0,0.00108]
[1743827857686,0.18232431,83823.0,83822.0,0.00108]
[1743827890427,0.06298001,83823.0,83822.0,0.00108]
[1743827890930,0.06298001,83823.0,83822.0,0.03118]
[1743827898526,0.06298001,83823.0,83822.0,0.06348]
[1743827899834,0.06298001,83823.0,83822.0,0.03338]
[1743827900027,0.06298001,83823.0,83822.0,0.00108]
[1743827901636,0.18232431,83823.0,83822.0,0.00108]
[1743827907647,0.06298001,83823.0,83822.0,0.00108]
[1743827907847,0.06298001,83823.0,83822.0,0.06168]
[1743827908047,0.06298001,83823.0,83822.0,0.00108]
[1743827910149,0.18232431,83823.0,83822.0,0.00108]
[1743827911536,0.18232431,83823.0,83821.0,0.05041889]
[1743827911940,0.18232431,83823.0,83821.0,0.05149889]
[1743827916155,0.18232431,83823.0,83821.0,0.05041889]
[1743827916643,0.18232431,83823.0,83821.0,0.05153889]
[1743827920156,0.18232431,83823.0,83821.0,0.05041889]
[1743827920354,0.18232431,83823.0,83821.0,0.05149889]
[1743827925066,0.18232431,83823.0,83822.0,0.05797666]
[1743827925263,0.18232431,83823.0,83822.0,0.05909666]
[1743827925458,0.18232431,83823.0,83822.0,0.00112]
[1743827926965,0.06298001,83823.0,83822.0,0.00112]
[1743827929664,0.18232431,83823.0,83822.0,0.00112]
[1743827932570,0.06298001,83823.0,83822.0,0.00112]
[1743827932755,0.06298001,83823.0,83822.0,0.05909721]
[1743827933072,0.06298001,83823.0,83822.0,0.12049721]
[1743827937364,0.06298001,83823.0,83822.0,0.06252]
[1743827937564,0.0619,83823.0,83822.0,0.12048558]
[1743827938070,0.0619,83823.0,83822.0,0.06252]
[1743827939668,0.0619,83823.0,83822.0,0.12048966]
[1743827939869,0.0619,83823.0,83822.0,0.06252]
[1743827940775,0.0619,83823.0,83822.0,0.00112]
[1743827942375,0.0619,83823.0,83822.0,0.03122]
[1743827944481,0.0619,83823.0,83822.0,0.00112]
[1743827945576,0.0619,83823.0,83822.0,0.03122]
[1743827951784,0.0619,83823.0,83822.0,0.08917708]
[1743827952777,0.0619,83823.0,83822.0,0.05907708]
[1743827985714,0.0619,83823.0,83822.0,0.10931708]
[1743827991920,0.1812443,83823.0,83822.0,0.10931708]
[1743827992226,0.5420443,83823.0,83822.0,0.05907708]
[1743827992420,0.1193457,83822.0,83821.0,0.00017889]
[1743827992922,0.1823457,83822.0,83821.0,0.00017889]
[1743827993309,0.3823457,83822.0,83821.0,0.00017889]
[1743827995320,0.3830257,83822.0,83821.0,0.00017889]
[1743828061172,0.26368,83822.0,83821.0,0.00017889]
[1743828061365,0.22561155,83822.0,83821.0,0.36097889]
[1743828061666,0.14311552,83822.0,83821.0,0.48148599]
[1743828061863,0.13646707,83822.0,83821.0,0.53945795]
[1743828062063,0.13646707,83822.0,83821.0,0.56955795]
[1743828062264,0.0334199,83822.0,83821.0,0.60185795]
[1743828062463,0.0611,83833.0,83821.0,0.42453889]
[1743828062659,0.0611,83833.0,83824.0,0.0596714]
[1743828062862,0.0611,83833.0,83826.0,0.1193396]
[1743828063162,0.0611,83833.0,83827.0,0.2140384]
[1743828063361,0.0611,83833.0,83827.0,0.2151184]
[1743828064071,0.1804302,83833.0,83827.0,0.2151184]
[1743828064672,0.0305,83832.0,83827.0,0.2151184]
[1743828065268,0.2,83830.0,83827.0,0.2151184]
[1743828065466,0.0614,83829.0,83827.0,0.2151184]
[1743828065967,0.0614,83829.0,83828.0,0.1193372]
[1743828066166,0.0614,83829.0,83828.0,0.1204172]
[1743828066365,0.0614,83829.0,83828.0,0.1834172]
[1743828066569,0.0614,83829.0,83828.0,0.06408]
[1743828066868,0.2614,83829.0,83828.0,0.06408]
[1743828070663,0.2614,83829.0,83828.0,0.1834172]
[1743828070974,0.23892,83829.0,83828.0,0.1834172]
[1743828071167,0.23892,83829.0,83828.0,0.06408]
[1743828071367,0.03892,83829.0,83828.0,0.06408]
[1743828073277,0.03892,83829.0,83828.0,0.1834172]
[1743828073461,0.00802,83829.0,83828.0,0.1834172]
[1743828073865,0.02278001,83833.0,83830.0,0.1193343]
[1743828074164,0.03147889,83834.0,83831.0,0.2325329]
[1743828074362,0.03147889,83834.0,83832.0,0.1193314]
[1743828074560,0.03147889,83834.0,83833.0,0.11933]
[1743828074761,0.3608,83845.0,83833.0,0.09662]
[1743828074975,0.0314,83843.0,83835.0,0.14353384]
[1743828075176,0.0314,83843.0,83836.0,0.0653]
[1743828075374,0.0314,83843.0,83836.0,0.06638]
[1743828075575,0.0314,83843.0,83837.0,0.3608]
[1743828075777,0.0314,83843.0,83837.0,0.36196]
[1743828076074,0.1507164,83843.0,83838.0,0.0653]
[1743828076278,0.1507164,83843.0,83838.0,0.06638]
[1743828077471,0.0301,83842.0,83838.0,0.06638]
[1743828077673,0.2,83841.0,83838.0,0.06638]
[1743828077978,0.2314,83841.0,83838.0,0.06638]
[1743828078166,0.0301,83840.0,83838.0,0.06638]
[1743828078668,0.0301,83839.0,83838.0,0.06638]
[1743828080469,0.0301,83839.0,83838.0,0.03408]
[1743828081077,0.0604,83839.0,83838.0,0.03408]
[1743828083770,0.0604,83839.0,83838.0,0.39488]
[1743828084078,0.0305,83843.0,83838.0,0.39488]
[1743828084079,0.03961476,83853.0,83838.0,0.39488]
[1743828084374,0.1193059,83850.0,83849.0,0.3608]
[1743828084576,0.1193059,83850.0,83849.0,0.41212]
[1743828085567,0.3193059,83850.0,83849.0,0.41212]
[1743828087563,0.3817059,83850.0,83849.0,0.41212]
[1743828088974,0.3817059,83850.0,83849.0,0.42108092]
[1743828095282,0.3817059,83850.0,83849.0,0.06028092]
[1743828095484,0.3817059,83850.0,83849.0,0.41996092]
[1743828096283,0.3817059,83850.0,83849.0,0.42108092]
[1743828097878,0.3817059,83850.0,83849.0,0.06028092]
[1743828098079,0.3817059,83850.0,83849.0,0.05916092]
[1743828098283,0.3817059,83850.0,83849.0,0.41996092]
[1743828098484,0.3817059,83850.0,83849.0,0.42104092]
[1743828104193,0.3817059,83850.0,83849.0,0.06024092]
[1743828104386,0.3817059,83850.0,83849.0,0.41996092]
[1743828104691,0.3817059,83850.0,83849.0,0.42104092]
[1743828106083,0.3817059,83850.0,83849.0,0.06024092]
[1743828106282,0.3817059,83850.0,83849.0,0.41996092]
[1743828106488,0.3817059,83850.0,83849.0,0.42104092]
[1743828106882,0.3817059,83850.0,83849.0,0.06024092]
[1743828107083,0.3817059,83850.0,83849.0,0.41996092]
[1743828107284,0.3817059,83850.0,83849.0,0.42104092]
[1743828109092,0.4131059,83850.0,83849.0,0.42104092]
[1743828109296,0.3817059,83850.0,83849.0,0.42104092]
[1743828110699,0.3817059,83850.0,83849.0,0.45274092]
[1743828116708,0.3817059,83850.0,83849.0,0.09194092]
[1743828116911,0.3817059,83850.0,83849.0,0.45274092]
[1743828117114,0.3817059,83850.0,83849.0,0.09194092]
[1743828117315,0.3817059,83850.0,83849.0,0.45274092]
[1743828136528,0.3817059,83850.0,83849.0,0.09194092]
[1743828136718,0.3817059,83850.0,83849.0,0.45274092]
[1743828141130,0.3817059,83850.0,83849.0,0.09194092]
[1743828141433,0.3817059,83850.0,83849.0,0.45274092]
[1743828143836,0.3817059,83850.0,83849.0,0.09194092]
[1743828144035,0.3817059,83850.0,83849.0,0.45274092]
[1743828148937,0.1193172,83842.0,83841.0,0.00017889]
[1743828149124,0.1193172,83842.0,83831.0,0.3608]
[1743828149125,0.1193172,83842.0,83838.0,0.0502]
[1743828149332,0.1193215,83839.0,83838.0,0.0502]
[1743828150037,0.1200815,83839.0,83838.0,0.05096]
[1743828150435,0.1200815,83839.0,83838.0,0.03796]
[1743828151139,0.1200815,83839.0,83838.0,0.0372]
[1743828151443,0.3200815,83839.0,83838.0,0.0372]
[1743828152140,0.3200815,83839.0,83838.0,0.04593806]
[1743828153144,0.3200815,83839.0,83838.0,0.00873806]
[1743828153343,0.1193258,83836.0,83835.0,0.0327]
[1743828153536,0.1199658,83836.0,83835.0,0.0335]
[1743828154144,0.3199658,83836.0,83835.0,0.0335]
[1743828157046,0.3199658,83836.0,83835.0,0.04245625]
[1743828163955,0.3502658,83836.0,83835.0,0.04245625]
[1743828170464,0.3502658,83836.0,83835.0,0.04165625]
[1743828182082,0.3502658,83836.0,83833.0,0.0502]
[1743828182083,0.1193286,83834.0,83833.0,0.0502]
[1743828182380,0.1201286,83834.0,83833.0,0.051]
[1743828182971,0.1201286,83834.0,83833.0,0.04871]
[1743828183282,0.1201286,83834.0,83833.0,0.04817]
[1743828183780,0.3201286,83834.0,83833.0,0.04817]
[1743828184079,0.3201286,83834.0,83833.0,0.04797]
[1743828185780,0.3201286,83834.0,83833.0,0.04900761]
[1743828186280,0.3201286,83834.0,83833.0,0.04893761]
[1743828186478,0.3201286,83834.0,83833.0,0.04840761]
[1743828187277,0.3201286,83834.0,83833.0,0.00973761]
[1743828187581,0.1193329,83831.0,83830.0,0.00017889]
[1743828187777,0.1193457,83822.0,83821.0,0.05714889]
[1743828188076,0.1193457,83822.0,83821.0,0.10734889]
[1743828188472,0.1193457,83822.0,83821.0,0.04692889]
[1743828190074,0.1201057,83822.0,83821.0,0.04768889]
[1743828190776,0.1201057,83822.0,83821.0,0.00076]
[1743828190972,0.1201057,83822.0,83821.0,0.00967434]
[1743828191178,0.1201057,83822.0,83821.0,0.00076]
[1743828191384,0.3201057,83822.0,83821.0,0.00076]
[1743828194581,0.3201057,83822.0,83821.0,0.00975991]
[1743828202393,0.3503057,83822.0,83821.0,0.00975991]
[1743828207193,0.3503057,83822.0,83821.0,0.00899991]
[1743828207397,0.1193471,83821.0,83820.0,0.0502]
[1743828207593,0.1510471,83821.0,83820.0,0.0502]
[1743828207792,0.1831471,83821.0,83820.0,0.0502]
[1743828208891,0.3831471,83821.0,83820.0,0.0502]
[1743828209393,0.3831471,83821.0,83820.0,0.05894206]
[1743828211000,0.3839871,83821.0,83820.0,0.05978206]
[1743828211688,0.3839871,83821.0,83820.0,0.05894206]
[1743828212299,0.3839871,83821.0,83820.0,0.05974206]
[1743828213799,0.3839871,83821.0,83820.0,0.05894206]
[1743828213997,0.3839871,83821.0,83820.0,0.05970206]
[1743828214799,0.3839871,83821.0,83820.0,0.05894206]
[1743828215099,0.3839871,83821.0,83820.0,0.05978206]
[1743828215890,0.3839871,83821.0,83820.0,0.05894206]
[1743828216199,0.3839871,83821.0,83820.0,0.05970206]
[1743828217000,0.59846425,83821.0,83820.0,0.05970206]
[1743828218395,0.59846425,83821.0,83820.0,0.05894206]
[1743828218602,0.59846425,83821.0,83820.0,0.05970206]
[1743828220503,0.59846425,83821.0,83820.0,0.05894206]
[1743828221608,0.3839871,83821.0,83820.0,0.05894206]
[1743828225609,0.3839871,83821.0,83820.0,0.05970206]
[1743828227404,0.3839871,83821.0,83820.0,0.05894206]
[1743828227605,0.3839871,83821.0,83820.0,0.05970206]
[1743828228815,0.3839871,83821.0,83820.0,0.05894206]
[1743828232619,0.59885365,83821.0,83820.0,0.05894206]
[1743828232810,0.59885365,83821.0,83820.0,0.05974206]
[1743828233719,0.59885365,83821.0,83820.0,0.05894206]
[1743828233917,0.59885365,83821.0,83820.0,0.05970206]
[1743828238229,0.59885365,83821.0,83820.0,0.05894206]
[1743828238827,0.3839871,83821.0,83820.0,0.05894206]
[1743828240326,0.3839871,83821.0,83820.0,0.05974206]
[1743828262938,0.46383862,83821.0,83820.0,0.05974206]
[1743828266533,0.59885657,83821.0,83820.0,0.05974206]
[1743828268334,0.59885657,83821.0,83820.0,0.05894206]
[1743828270143,0.59885657,83821.0,83820.0,0.05970206]
[1743828271238,0.3839871,83821.0,83820.0,0.05970206]
[1743828272541,0.3839871,83821.0,83820.0,0.05894206]
[1743828272740,0.3839871,83821.0,83820.0,0.05970206]
[1743828274442,0.3839871,83821.0,83820.0,0.05894206]
[1743828274745,0.3839871,83821.0,83820.0,0.05970206]
[1743828275047,0.59885657,83821.0,83820.0,0.05970206]
[1743828275248,0.59885657,83821.0,83820.0,0.05894206]
[1743828281749,0.3839871,83821.0,83820.0,0.05894206]
[1743828283345,0.3839871,83821.0,83820.0,0.00874206]
[1743828283549,0.1193671,83807.0,83796.0,0.64588099]
[1743828283845,0.4808071,83807.0,83806.0,0.00064]
[1743828284236,0.1193728,83803.0,83802.0,0.62346804]
[1743828284442,0.1193728,83803.0,83802.0,0.62410804]
[1743828284443,0.1202128,83803.0,83802.0,0.62410804]
[1743828284849,0.1202128,83803.0,83802.0,0.63304094]
[1743828285051,0.1820128,83803.0,83802.0,0.63304094]
[1743828285953,0.1820128,83803.0,83802.0,0.4189729]
[1743828288348,0.1820128,83803.0,83802.0,0.43169271]
[1743828296861,0.1820128,83803.0,83794.0,0.05037889]
[1743828296862,0.1193842,83795.0,83794.0,0.00017889]
[1743828297859,0.5321842,83795.0,83794.0,0.00904515]
[1743828298050,0.5321842,83795.0,83781.0,0.21406804]
[1743828298051,0.1194027,83782.0,83781.0,0.21406804]
[1743828298254,0.1194027,83782.0,83781.0,0.22688927]
[1743828298561,0.1194027,83782.0,83781.0,0.01282123]
[1743828298756,0.1194041,83781.0,83780.0,0.21406804]
[1743828298953,0.1526041,83781.0,83780.0,0.21406804]
[1743828299754,0.1526041,83781.0,83780.0,0.22307668]
[1743828301254,0.3526041,83781.0,83780.0,0.22307668]
[1743828301965,0.3526041,83781.0,83780.0,0.23563489]
[1743828302164,0.3526041,83781.0,83780.0,0.23537489]
[1743828302666,0.3526041,83781.0,83780.0,0.02156685]
[1743828302866,0.1194155,83773.0,83772.0,0.00017901]
[1743828303067,0.1194155,83773.0,83770.0,0.3608]
[1743828303068,0.1194169,83772.0,83771.0,0.57829901]
[1743828303366,0.1194169,83772.0,83771.0,0.57758901]
[1743828303367,0.1800169,83772.0,83771.0,0.57758901]
[1743828303868,0.1800169,83772.0,83771.0,0.58676547]
[1743828304057,0.1800169,83772.0,83771.0,0.94756547]
[1743828305263,0.18105691,83772.0,83771.0,0.96073261]
[1743828305566,0.18105691,83772.0,83771.0,0.59993261]
[1743828305769,0.18105691,83772.0,83771.0,0.0223436]
[1743828305968,0.18105691,83772.0,83771.0,0.0217036]
[1743828306153,0.1194283,83764.0,83763.0,0.00017901]
[1743828306353,0.1204283,83764.0,83763.0,0.00077901]